fUSD/lending_fUSD_20250206
["ID","MTS","AMOUNT","RATE_DAILY","PERIOD"]
[352011098,1738877461561,-512.4,0.00017937,2]
[352011099,1738877461571,-500.0,0.00017937,2]
[352011100,1738877461580,-714.84,0.00017937,2]
[352011101,1738877461590,-500.0,0.00017937,2]
[352011102,1738877461599,-500.0,0.00017938,2]
[352011103,1738877461608,-500.0,0.00017938,2]
[352011104,1738877461618,-500.0,0.00017938,2]
[352011105,1738877461629,-500.0,0.00017938,2]
[352011106,1738877461638,-195.92117072,0.00017938,2]
[352011107,1738877461647,-500.0,0.00017938,2]
[352011108,1738877461656,-325.6,0.00017938,2]
[352011109,1738877461666,-500.0,0.00017938,2]
[352011110,1738877461675,-500.0,0.00017938,2]
[352011111,1738877461684,-500.0,0.00017938,2]
[352011112,1738877461693,-500.0,0.00017938,2]
[352011113,1738877461702,-500.0,0.00017938,2]
[352011114,1738877461711,-500.0,0.00017938,2]
[352011115,1738877461721,-500.0,0.00017938,2]
[352011116,1738877461730,-500.0,0.00017938,2]
[352011117,1738877461739,-500.0,0.00017938,2]
[352011118,1738877461748,-500.0,0.00017938,2]
[352011119,1738877461897,-500.0,0.00017938,2]
[352011120,1738877461907,-500.0,0.00017938,2]
[352011121,1738877461917,-500.0,0.00017938,2]
[352011122,1738877461926,-500.0,0.00017938,2]
[352011123,1738877461935,-500.0,0.00017938,2]
[352011124,1738877461945,-500.0,0.00017938,2]
[352011125,1738877461955,-500.0,0.00017938,2]
[352011126,1738877461966,-500.0,0.00017938,2]
[352011127,1738877461979,-500.0,0.00017938,2]
[352011128,1738877461991,-500.0,0.00017938,2]
[352011129,1738877462002,-500.0,0.00017938,2]
[352011130,1738877462012,-500.0,0.00017938,2]
[352011131,1738877462022,-255.84,0.00017938,2]
[352011132,1738877462036,-1856.0,0.0001794,2]
[352011133,1738877462046,-1233.46148798,0.00017943,5]
[352011134,1738877462055,-2518.55292469,0.00017945,5]
[352011135,1738877462065,-1856.0,0.00017967,2]
[352011136,1738877462075,-5617.0558765,0.00017985,2]
[352011137,1738877462084,-5839.3674231,0.00017985,2]
[352011138,1738877462093,-1006.2886601,0.00017986,2]
[352011139,1738877462103,-840.6097596,0.00017986,2]
[352011140,1738877462112,-2813.9052626,0.00017986,2]
[352011141,1738877462123,-2940.291922,0.00017986,2]
[352011142,1738877462132,-674.9308592,0.00017988,2]
[352011143,1738877462141,-509.2519587,0.00017988,2]
[352011144,1738877462151,-3066.6785814,0.00017988,2]
[352011145,1738877462160,-3193.0652408,0.00017988,2]
[352011146,1738877462170,-6061.6789697,0.00017988,2]
[352011147,1738877462180,-6283.9905163,0.00017988,2]
[352011148,1738877462189,-1856.0,0.00017995,2]
[352011149,1738877462199,-166.45082803,0.00017997,2]
[352011150,1738877462208,-2356.62076569,0.00017998,2]
[352011151,1738877462218,-300.0,0.00017999,2]
[352011152,1738877462227,-300.0,0.00017999,2]
[352011153,1738877462237,-151.0,0.00017999,2]
[352011154,1738877462247,-151.0,0.00017999,2]
[352011155,1738877462256,-371301.38536286,0.00018,2]
[352011156,1738877462423,-904.85065899,0.00018,2]
[352011157,1738877462435,-2369.4376295,0.00018,2]
[352011158,1738877462447,-1300.0,0.00018,2]
[352011159,1738877462463,-500.0,0.00017236,2]
[352011160,1738877462473,-88.23166036,0.00018,2]
[352011161,1738877462484,-2119.36000001,0.00018,2]
[352011162,1738877462496,-309.39897783,0.00018,2]
[352011163,1738877462516,-379.36,0.00017116,2]
[352011164,1738877462525,-25.3899995,0.00018,2]
[352011165,1738877462782,-310.31123531,0.00017235,2]
[352011166,1738877462794,-189.68876469,0.00017235,2]
[352011167,1738877462804,-621.95,0.00017235,2]
[352011168,1738877462813,-500.0,0.00017236,2]
[352011169,1738877462822,-500.0,0.00017252,2]
[352011170,1738877462832,-208.62,0.00017252,2]
[352011171,1738877462842,-442.03,0.00017373,2]
[352011172,1738877462851,-500.0,0.00017373,2]
[352011173,1738877462861,-500.0,0.00017389,2]
[352011174,1738877462870,-500.0,0.0001751,2]
[352011175,1738877462879,-574.2,0.00017526,2]
[352011176,1738877462889,-500.0,0.00017647,2]
[352011177,1738877462898,-500.0,0.00017784,2]
[352011178,1738877462907,-2443.03938389,0.00018,2]
[352011179,1738877462923,-500.0,0.00017921,2]
[352011180,1738877462932,-328282.70436085,0.00018,2]
[352011181,1738877463029,-774.03585973,0.00018,2]
[352011182,1738877463044,-451.71853276,0.00018,2]
[352011183,1738877463056,-1017.6830018,0.00018,2]
[352011184,1738877463068,-1189.88173211,0.00018,2]
[352011185,1738877463079,-446.51173508,0.00018,2]
[352011186,1738877463091,-738.24876368,0.00018,2]
[352011187,1738877463108,-7898.999995,0.00018,2]
[352011188,1738877463119,-7703.6001244,0.00018,2]
[352011189,1738877463131,-396492.00808644,0.00018,2]
[352011190,1738877463280,-500.0,0.00017235,2]
[352011191,1738877463290,-500.0,0.00017235,2]
[352011192,1738877463300,-500.0,0.00017372,2]
[352011193,1738877463311,-500.0,0.00017509,2]
[352011194,1738877463321,-100.21927574,0.00017646,2]
[352011195,1738877463338,-399.78072426,0.00017646,2]
[352011196,1738877463348,-46953.15052799,0.00018,2]
[352011197,1738877463360,-7905.2317826,0.00018,2]
[352011198,1738877463372,-619.76020313,0.00018,2]
[352011199,1738877463468,-227.76446095,0.00018,2]
[352011200,1738877463480,-510.00939672,0.00018,2]
[352011201,1738877463491,-750.18227,0.00018,2]
[352011202,1738877463503,-689.003,0.00018,2]
[352011203,1738877463560,-47365.61763487,0.00018,2]
[352011204,1738877463572,-51783.12903868,0.00018,2]
[352011205,1738877463583,-1097.67821731,0.00018,2]
[352011206,1738877789108,-155.96,0.00010137,2]
[352011207,1738877880288,1000.0,0.0001,2]
[352011208,1738878066614,-3000.0,0.00012124,2]
[352011209,1738878066636,-1100.0,0.00012124,2]
[352011210,1738878122689,-3000.0,0.00013494,2]
[352011211,1738878149819,-1000.0,0.0001322,2]
[352011212,1738878158778,-2500.0,0.0001322,2]
[352011216,1738878484171,-178.5,0.00013699,2]
[352011217,1738878484195,-1000.0,0.0001459,2]
[352011218,1738878484218,-2500.0,0.0001459,2]
[352011219,1738878484241,-691.14,0.00014761,2]
[352011220,1738878484265,-150.0,0.00015068,2]
[352011221,1738878484289,-150.0,0.00015068,2]
[352011222,1738878484316,-150.0,0.00015212,2]
[352011223,1738878484343,-150.0,0.00015913,2]
[352011224,1738878484368,-300.0,0.00015959,2]
[352011225,1738878484392,-1000.0,0.0001596,2]
[352011226,1738878484417,-1730.36,0.0001596,2]
[352011227,1738878487889,9947.0858,8.973e-05,2]
[352011229,1738878566743,5000.0,8.973e-05,2]
[352011230,1738878618793,3388.022,8.973e-05,2]
[352011238,1738878632278,-800.0,0.00014316,2]
[352011239,1738878632288,-2000.0,0.00014316,2]
[352011240,1738878632297,-150.0,0.00014341,2]
[352011241,1738878632306,-656.58,0.00014366,2]
[352011242,1738878632316,-150.0,0.00015306,2]
[352011243,1738878632325,-800.0,0.00015686,2]
[352011244,1738878632334,-2000.0,0.00015686,2]
[352011245,1738878632344,-150.0,0.00015748,2]
[352011246,1738878632353,-381.7,0.0001596,2]
[352011247,1738878632366,-371.26,0.0001596,2]
[352011248,1738878632375,-380.93,0.0001596,2]
[352011249,1738878632385,-380.89,0.0001596,2]
[352011250,1738878632394,-150.0,0.000162,2]
[352011251,1738878632404,-500.0,0.00016284,2]
[352011252,1738878632414,-1000.0,0.00016284,2]
[352011253,1738878632424,-2273.0,0.000163,2]
[352011254,1738878632434,-656.58,0.0001663,2]
[352011255,1738878632444,-420.08,0.00016658,30]
[352011256,1738878632454,-201.85,0.00016679,2]
[352011257,1738878632464,-800.0,0.00017056,2]
[352011258,1738878632473,-2000.0,0.00017056,2]
[352011259,1738878632483,-1259.27646234,0.00017068,5]
[352011260,1738878632493,-1259.27646234,0.00017151,5]
[352011261,1738878632502,-1259.27646234,0.00017233,5]
[352011262,1738878632511,-249.31,0.00017233,2]
[352011263,1738878632521,-318.67,0.00017235,2]
[352011264,1738878632531,-500.0,0.00017235,2]
[352011265,1738878632540,-479.29,0.00017235,2]
[352011266,1738878632549,-500.0,0.00017235,2]
[352011267,1738878632559,-500.0,0.00017235,2]
[352011268,1738878632568,-500.0,0.00017235,2]
[352011269,1738878632577,-500.0,0.00017235,2]
[352011270,1738878632587,-500.0,0.00017235,2]
[352011271,1738878632596,-500.0,0.00017235,2]
[352011272,1738878632605,-500.0,0.00017235,2]
[352011273,1738878632616,-500.0,0.00017235,2]
[352011274,1738878632625,-647.74,0.00017235,2]
[352011275,1738878632634,-338.55069408,0.00017235,2]
[352011276,1738878632643,-500.0,0.00017235,2]
[352011277,1738878632652,-500.0,0.00017235,2]
[352011278,1738878632662,-500.0,0.00017235,2]
[352011279,1738878632671,-373.84,0.00017235,2]
[352011280,1738878632681,-500.0,0.00017235,2]
[352011281,1738878632690,-257.08975325,0.00017235,2]
[352011282,1738878632700,-500.0,0.00017235,2]
[352011283,1738878632711,-500.0,0.00017235,2]
[352011284,1738878632720,-500.0,0.00017235,2]
[352011285,1738878632730,-500.0,0.00017235,2]
[352011286,1738878632740,-500.0,0.00017235,2]
[352011287,1738878632749,-500.0,0.00017235,2]
[352011288,1738878632758,-500.0,0.00017235,2]
[352011289,1738878632768,-500.0,0.00017235,2]
[352011290,1738878632777,-525.6721037,0.00017235,2]
[352011291,1738878632787,-500.0,0.00017235,2]
[352011292,1738878632797,-500.0,0.00017235,2]
[352011293,1738878632807,-500.0,0.00017235,2]
[352011294,1738878632817,-578.6693405,0.00017235,2]
[352011295,1738878632826,-500.0,0.00017235,2]
[352011296,1738878632837,-500.0,0.00017235,2]
[352011297,1738878632846,-500.0,0.00017235,2]
[352011298,1738878632856,-500.0,0.00017235,2]
[352011299,1738878632865,-500.0,0.00017235,2]
[352011300,1738878632874,-500.0,0.00017235,2]
[352011301,1738878632884,-500.0,0.00017235,2]
[352011302,1738878632894,-413.82,0.00017235,2]
[352011303,1738878632903,-500.0,0.00017235,2]
[352011304,1738878632912,-500.0,0.00017235,2]
[352011305,1738878632922,-500.0,0.00017235,2]
[352011306,1738878632931,-500.0,0.00017235,2]
[352011307,1738878632941,-500.0,0.00017235,2]
[352011308,1738878632950,-500.0,0.00017235,2]
[352011309,1738878632959,-500.0,0.00017235,2]
[352011310,1738878632969,-500.0,0.00017235,2]
[352011311,1738878632979,-500.0,0.00017235,2]
[352011312,1738878632989,-500.0,0.00017235,2]
[352011313,1738878632999,-500.0,0.00017235,2]
[352011314,1738878633008,-477.93,0.00017235,2]
[352011315,1738878633017,-500.0,0.00017235,2]
[352011316,1738878633027,-500.0,0.00017235,2]
[352011317,1738878633037,-500.0,0.00017235,2]
[352011318,1738878633047,-500.0,0.00017235,2]
[352011319,1738878633058,-500.0,0.00017235,2]
[352011320,1738878633068,-192.32,0.00017235,2]
[352011321,1738878633078,-500.0,0.00017235,2]
[352011322,1738878633088,-500.0,0.00017235,2]
[352011323,1738878633099,-500.0,0.00017235,2]
[352011324,1738878633109,-500.0,0.00017235,2]
[352011325,1738878633119,-174.9,0.00017235,2]
[352011326,1738878633129,-494.6,0.00017235,2]
[352011327,1738878633139,-500.0,0.00017235,2]
[352011328,1738878633148,-211.48,0.00017235,2]
[352011329,1738878633158,-500.0,0.00017235,2]
[352011330,1738878633168,-500.0,0.00017235,2]
[352011331,1738878633178,-500.0,0.00017235,2]
[352011332,1738878633188,-500.0,0.00017235,2]
[352011333,1738878633198,-500.0,0.00017251,2]
[352011334,1738878633207,-1259.27646234,0.00017315,5]
[352011335,1738878633218,-500.0,0.00017372,2]
[352011336,1738878633228,-500.0,0.00017372,2]
[352011337,1738878633238,-500.0,0.00017372,2]
[352011338,1738878633248,-500.0,0.00017372,2]
[352011339,1738878633258,-307.1,0.00017372,2]
[352011340,1738878633267,-500.0,0.00017372,2]
[352011341,1738878633277,-500.0,0.00017372,2]
[352011342,1738878633287,-500.0,0.00017372,2]
[352011343,1738878633296,-500.0,0.00017372,2]
[352011344,1738878633306,-500.0,0.00017372,2]
[352011345,1738878633501,-312.16,0.00017372,2]
[352011346,1738878633511,-500.0,0.00017372,2]
[352011347,1738878633522,-500.0,0.00017372,2]
[352011348,1738878633533,-500.0,0.00017372,2]
[352011349,1738878633544,-500.0,0.00017372,2]
[352011350,1738878633554,-500.0,0.00017372,2]
[352011351,1738878633565,-500.0,0.00017372,2]
[352011352,1738878633575,-500.0,0.00017372,2]
[352011353,1738878633584,-500.0,0.00017372,2]
[352011354,1738878633594,-500.0,0.00017372,2]
[352011355,1738878633604,-500.0,0.00017372,2]
[352011356,1738878633614,-500.0,0.00017372,2]
[352011357,1738878633624,-500.0,0.00017372,2]
[352011358,1738878633633,-500.0,0.00017372,2]
[352011359,1738878633645,-500.0,0.00017372,2]
[352011360,1738878633654,-500.0,0.00017372,2]
[352011361,1738878633665,-500.0,0.00017372,2]
[352011362,1738878633675,-500.0,0.00017372,2]
[352011363,1738878633686,-500.0,0.00017372,2]
[352011364,1738878633696,-500.0,0.00017372,2]
[352011365,1738878633706,-500.0,0.00017372,2]
[352011366,1738878633719,-505.1,0.00017372,2]
[352011367,1738878633729,-500.0,0.00017372,2]
[352011368,1738878633739,-500.0,0.00017372,2]
[352011369,1738878633749,-237.52,0.00017372,2]
[352011370,1738878633758,-500.0,0.00017372,2]
[352011371,1738878633768,-457.02,0.00017372,2]
[352011372,1738878633778,-1259.27646234,0.00017397,5]
[352011373,1738878633788,-99533.22311338,0.00017439,2]
[352011374,1738878633798,-1259.27646234,0.00017479,5]
[352011375,1738878633808,-900.0,0.000175,6]
[352011376,1738878633817,-500.0,0.00017507,2]
[352011377,1738878633827,-500.0,0.00017507,2]
[352011378,1738878633837,-500.0,0.00017507,2]
[352011379,1738878633847,-500.0,0.00017507,2]
[352011380,1738878633857,-500.0,0.00017508,2]
[352011381,1738878633866,-500.0,0.00017508,2]
[352011382,1738878633877,-500.0,0.00017508,2]
[352011383,1738878633887,-500.0,0.00017508,2]
[352011384,1738878633897,-500.0,0.00017508,2]
[352011385,1738878633908,-500.0,0.00017508,2]
[352011386,1738878633918,-500.0,0.00017508,2]
[352011387,1738878633929,-500.0,0.00017508,2]
[352011388,1738878633940,-500.0,0.00017508,2]
[352011389,1738878633951,-500.0,0.00017508,2]
[352011390,1738878633962,-500.0,0.00017508,2]
[352011391,1738878633976,-500.0,0.00017508,2]
[352011392,1738878633986,-500.0,0.00017508,2]
[352011393,1738878633996,-500.0,0.00017508,2]
[352011394,1738878634007,-500.0,0.00017508,2]
[352011395,1738878634018,-522.43,0.00017508,2]
[352011396,1738878634028,-500.0,0.00017508,2]
[352011397,1738878634038,-345.27867794,0.00017508,2]
[352011398,1738878634048,-500.0,0.00017508,2]
[352011399,1738878634058,-500.0,0.00017508,2]
[352011400,1738878634069,-500.0,0.00017508,2]
[352011401,1738878634079,-156.921718,0.00017508,2]
[352011402,1738878634090,-500.0,0.00017508,2]
[352011403,1738878634100,-500.0,0.00017508,2]
[352011404,1738878634110,-155.292748,0.00017508,2]
[352011405,1738878634121,-500.0,0.00017508,2]
[352011406,1738878634131,-500.0,0.00017508,2]
[352011407,1738878634141,-500.0,0.00017508,2]
[352011408,1738878634151,-500.0,0.00017508,2]
[352011409,1738878634162,-500.0,0.00017508,2]
[352011410,1738878634173,-500.0,0.00017508,2]
[352011411,1738878634183,-500.0,0.00017508,2]
[352011412,1738878634193,-500.0,0.00017508,2]
[352011413,1738878634203,-500.0,0.00017508,2]
[352011414,1738878634218,-500.0,0.00017508,2]
[352011415,1738878634230,-500.0,0.00017508,2]
[352011416,1738878634240,-500.0,0.00017508,2]
[352011417,1738878634251,-500.0,0.00017508,2]
[352011418,1738878634261,-500.0,0.00017508,2]
[352011419,1738878634271,-500.0,0.00017508,2]
[352011420,1738878634282,-500.0,0.00017508,2]
[352011421,1738878634293,-500.0,0.00017508,2]
[352011422,1738878634303,-500.0,0.00017508,2]
[352011423,1738878634314,-500.0,0.00017508,2]
[352011424,1738878634324,-502.74,0.00017508,2]
[352011425,1738878634335,-500.0,0.00017508,2]
[352011426,1738878634345,-500.0,0.00017508,2]
[352011427,1738878634355,-500.0,0.00017508,2]
[352011428,1738878634370,-500.0,0.00017508,2]
[352011429,1738878634381,-208.9,0.00017508,2]
[352011430,1738878634391,-619.04,0.00017508,2]
[352011431,1738878634403,-500.0,0.00017508,2]
[352011432,1738878634414,-617.18,0.00017508,2]
[352011433,1738878634424,-500.0,0.00017508,2]
[352011434,1738878634434,-500.0,0.00017508,2]
[352011435,1738878634445,-500.0,0.00017508,2]
[352011436,1738878634455,-500.0,0.00017508,2]
[352011437,1738878634468,-616.93,0.00017508,2]
[352011438,1738878634478,-500.0,0.00017508,2]
[352011439,1738878634488,-500.0,0.00017508,2]
[352011440,1738878634498,-827.29,0.00017508,2]
[352011441,1738878634508,-500.0,0.00017508,2]
[352011442,1738878634518,-500.0,0.00017508,2]
[352011443,1738878634528,-500.0,0.00017508,2]
[352011444,1738878634539,-500.0,0.00017508,2]
[352011445,1738878634549,-580.93,0.00017508,2]
[352011446,1738878634558,-500.0,0.00017508,2]
[352011447,1738878634568,-235.32,0.00017508,2]
[352011448,1738878634577,-500.0,0.00017508,2]
[352011449,1738878634587,-500.0,0.00017508,2]
[352011450,1738878634599,-500.0,0.00017508,2]
[352011451,1738878634609,-207.36,0.00017508,2]
[352011452,1738878634618,-500.0,0.00017508,2]
[352011453,1738878634628,-500.0,0.00017508,2]
[352011454,1738878634638,-733.45,0.00017508,2]
[352011455,1738878634648,-500.0,0.00017508,2]
[352011456,1738878634657,-299.46,0.00017508,2]
[352011457,1738878634667,-500.0,0.00017508,2]
[352011458,1738878634677,-540.73,0.00017508,2]
[352011459,1738878634687,-500.0,0.00017508,2]
[352011460,1738878634697,-500.0,0.00017508,2]
[352011461,1738878634707,-500.0,0.00017508,2]
[352011462,1738878634719,-500.0,0.00017508,2]
[352011463,1738878634729,-500.0,0.00017508,2]
[352011464,1738878634739,-506.64,0.00017508,2]
[352011465,1738878634749,-453.06,0.00017508,2]
[352011466,1738878634759,-500.0,0.00017508,2]
[352011467,1738878634768,-500.0,0.00017508,2]
[352011468,1738878634778,-645.9,0.00017508,2]
[352011469,1738878634787,-500.0,0.00017508,2]
[352011470,1738878634797,-500.0,0.00017508,2]
[352011471,1738878634807,-500.0,0.00017508,2]
[352011472,1738878634817,-500.0,0.00017508,2]
[352011473,1738878634828,-500.0,0.00017508,2]
[352011474,1738878634837,-751.64,0.00017508,2]
[352011475,1738878634847,-537.27,0.00017508,2]
[352011476,1738878634856,-500.0,0.00017508,2]
[352011477,1738878634865,-648.48,0.00017508,2]
[352011478,1738878634874,-325.77,0.00017508,2]
[352011479,1738878634884,-467.48,0.00017508,2]
[352011480,1738878634894,-582.96,0.00017508,2]
[352011481,1738878634904,-504.35,0.00017508,2]
[352011482,1738878634914,-641.49,0.00017508,2]
[352011483,1738878634924,-500.0,0.00017508,2]
[352011484,1738878634934,-500.0,0.00017508,2]
[352011485,1738878634944,-389.46,0.00017508,2]
[352011486,1738878634954,-500.0,0.00017508,2]
[352011487,1738878634965,-500.0,0.00017508,2]
[352011488,1738878634976,-500.0,0.00017508,2]
[352011489,1738878634985,-500.0,0.00017508,2]
[352011490,1738878634996,-500.0,0.00017508,2]
[352011491,1738878635006,-500.0,0.00017508,2]
[352011492,1738878635016,-971.3,0.00017508,2]
[352011493,1738878635026,-1659.31,0.00017508,2]
[352011494,1738878635036,-553.5,0.00017508,2]
[352011495,1738878635046,-501.99,0.00017508,2]
[352011496,1738878635057,-500.0,0.00017508,2]
[352011497,1738878635067,-869.6,0.00017508,2]
[352011498,1738878635076,-500.0,0.00017508,2]
[352011499,1738878635086,-500.0,0.00017508,2]
[352011500,1738878635096,-500.0,0.00017508,2]
[352011501,1738878635105,-500.0,0.00017508,2]
[352011502,1738878635115,-835.94,0.00017508,2]
[352011503,1738878635124,-500.0,0.00017508,2]
[352011504,1738878635134,-500.0,0.00017508,2]
[352011505,1738878635143,-633.84,0.00017508,2]
[352011506,1738878635153,-500.0,0.00017508,2]
[352011507,1738878635162,-525.99,0.00017508,2]
[352011508,1738878635171,-500.0,0.00017508,2]
[352011509,1738878635181,-592.38,0.00017508,2]
[352011510,1738878635191,-770.8,0.00017508,2]
[352011511,1738878635202,-500.0,0.00017508,2]
[352011512,1738878635212,-514.52,0.00017508,2]
[352011513,1738878635223,-500.0,0.00017508,2]
[352011514,1738878635232,-500.0,0.00017508,2]
[352011515,1738878635242,-267.78,0.00017508,2]
[352011516,1738878635252,-500.0,0.00017508,2]
[352011517,1738878635262,-598.13,0.00017508,2]
[352011518,1738878635271,-1248.33,0.00017508,2]
[352011519,1738878635281,-500.0,0.00017508,2]
[352011520,1738878635290,-500.0,0.00017508,2]
[352011521,1738878635299,-500.0,0.00017508,2]
[352011522,1738878635309,-500.0,0.00017508,2]
[352011523,1738878635318,-500.0,0.00017508,2]
[352011524,1738878635328,-552.0,0.00017508,2]
[352011525,1738878635338,-512.84,0.00017508,2]
[352011526,1738878635347,-500.0,0.00017508,2]
[352011527,1738878635361,-500.0,0.00017508,2]
[352011528,1738878635370,-500.0,0.00017508,2]
[352011529,1738878635384,-500.0,0.00017508,2]
[352011530,1738878635394,-500.0,0.00017508,2]
[352011531,1738878635405,-643.86,0.00017508,2]
[352011532,1738878635414,-534.26,0.00017508,2]
[352011533,1738878635424,-648.11,0.00017508,2]
[352011534,1738878635435,-479.2,0.00017508,2]
[352011535,1738878635445,-638.57,0.00017508,2]
[352011536,1738878635455,-500.0,0.00017508,2]
[352011537,1738878635464,-436.46,0.00017508,2]
[352011538,1738878635474,-689.27,0.00017508,2]
[352011539,1738878635483,-500.0,0.00017508,2]
[352011540,1738878635493,-952.95,0.00017508,2]
[352011541,1738878635502,-512.05,0.00017508,2]
[352011542,1738878635514,-627.25,0.00017508,2]
[352011543,1738878635524,-669.85,0.00017508,2]
[352011544,1738878635533,-500.0,0.00017508,2]
[352011545,1738878635542,-500.0,0.00017508,2]
[352011546,1738878635552,-500.0,0.00017508,2]
[352011547,1738878635561,-548.78,0.00017508,2]
[352011548,1738878635571,-500.0,0.00017508,2]
[352011549,1738878635580,-938.81,0.00017508,2]
[352011550,1738878635589,-500.0,0.00017508,2]
[352011551,1738878635598,-500.0,0.00017508,2]
[352011552,1738878635608,-500.0,0.00017508,2]
[352011553,1738878635618,-735.28,0.00017508,2]
[352011554,1738878635627,-500.0,0.00017508,2]
[352011555,1738878635637,-500.0,0.00017508,2]
[352011556,1738878635647,-500.0,0.00017508,2]
[352011557,1738878635656,-500.0,0.00017508,2]
[352011558,1738878635665,-487.51168843,0.00017508,2]
[352011559,1738878635675,-500.0,0.00017508,2]
[352011560,1738878635684,-1238.67,0.00017508,2]
[352011561,1738878635694,-1253.84,0.00017508,2]
[352011562,1738878635703,-500.0,0.00017508,2]
[352011563,1738878635713,-500.0,0.00017508,2]
[352011564,1738878635723,-458.8,0.00017508,2]
[352011565,1738878635733,-520.0,0.00017508,2]
[352011566,1738878635742,-500.0,0.00017508,2]
[352011567,1738878635751,-700.58,0.00017508,2]
[352011568,1738878635760,-1911.94,0.00017508,2]
[352011569,1738878635770,-500.0,0.00017508,2]
[352011570,1738878635780,-500.0,0.00017508,2]
[352011571,1738878635789,-500.0,0.00017508,2]
[352011572,1738878635799,-535.27,0.00017508,2]
[352011573,1738878635809,-500.0,0.00017508,2]
[352011574,1738878635819,-546.58,0.00017508,2]
[352011575,1738878635829,-500.0,0.00017508,2]
[352011576,1738878635839,-500.0,0.00017508,2]
[352011577,1738878635848,-500.0,0.00017508,2]
[352011578,1738878635858,-500.0,0.00017508,2]
[352011579,1738878635868,-500.0,0.00017508,2]
[352011580,1738878635877,-500.0,0.00017508,2]
[352011581,1738878635888,-500.0,0.00017508,2]
[352011582,1738878635899,-500.0,0.00017508,2]
[352011583,1738878635909,-500.0,0.00017508,2]
[352011584,1738878635919,-660.67,0.00017508,2]
[352011585,1738878635928,-500.0,0.00017508,2]
[352011586,1738878635938,-500.0,0.00017508,2]
[352011587,1738878635947,-500.0,0.00017508,2]
[352011588,1738878635956,-500.0,0.00017508,2]
[352011589,1738878635966,-500.0,0.00017508,2]
[352011590,1738878635976,-500.0,0.00017508,2]
[352011591,1738878635985,-500.0,0.00017508,2]
[352011592,1738878635995,-253.2,0.00017509,2]
[352011593,1738878636005,-500.0,0.00017509,2]
[352011594,1738878636015,-158.31,0.00017509,2]
[352011595,1738878636026,-500.0,0.00017509,2]
[352011596,1738878636037,-500.0,0.00017509,2]
[352011597,1738878636047,-500.0,0.00017509,2]
[352011598,1738878636059,-456.09400197,0.00017509,2]
[352011599,1738878636068,-500.0,0.00017509,2]
[352011600,1738878636078,-279.05331664,0.00017509,2]
[352011601,1738878636087,-500.0,0.00017509,2]
[352011602,1738878636097,-500.0,0.00017509,2]
[352011603,1738878636107,-500.0,0.00017509,2]
[352011604,1738878636117,-500.0,0.00017509,2]
[352011605,1738878636128,-500.0,0.00017509,2]
[352011606,1738878636139,-500.0,0.00017509,2]
[352011607,1738878636151,-500.0,0.00017509,2]
[352011608,1738878636163,-500.0,0.00017509,2]